fUSD/lending_fUSD_20240205
["ID","MTS","AMOUNT","RATE_DAILY","PERIOD"]
[313315326,1707141061653,-1749.33,0.00043561,5]
[313315327,1707141061662,-500.0,0.00043561,7]
[313315328,1707141061671,-973.94,0.00043561,7]
[313315329,1707141061681,-883.86,0.00043561,7]
[313315330,1707141061692,-1114.96,0.00043561,7]
[313315331,1707141061701,-500.0,0.00043561,7]
[313315332,1707141061710,-500.0,0.00043561,7]
[313315333,1707141061719,-500.0,0.00043561,7]
[313315334,1707141061729,-1040.76,0.00043561,7]
[313315335,1707141061738,-1579.06,0.00043561,7]
[313315336,1707141061747,-500.0,0.00043561,7]
[313315337,1707141061756,-500.0,0.00043561,7]
[313315338,1707141061765,-500.0,0.00043561,7]
[313315339,1707141061777,-708.83,0.00043561,7]
[313315340,1707141061787,-695.17,0.00043561,7]
[313315341,1707141061795,-4647.44,0.00043561,7]
[313315342,1707141061912,-794.97,0.00043561,7]
[313315343,1707141061922,-500.0,0.00043561,20]
[313315344,1707141061932,-2815.53,0.00043561,7]
[313315345,1707141061941,-16636.33,0.00043561,7]
[313315346,1707141061951,-563.07,0.00043561,7]
[313315347,1707141061960,-874.74,0.00043561,7]
[313315348,1707141061969,-882.21,0.00043561,7]
[313315349,1707141061978,-613.72,0.00043561,7]
[313315350,1707141061987,-500.0,0.00043561,7]
[313315351,1707141061997,-500.0,0.00043561,7]
[313315352,1707141062006,-1232.66,0.00043561,7]
[313315353,1707141062015,-500.0,0.00043561,7]
[313315354,1707141062025,-500.0,0.00043561,7]
[313315355,1707141062034,-786.94,0.00043561,7]
[313315356,1707141062043,-619.7,0.00043561,7]
[313315357,1707141062053,-1817.8,0.00043561,7]
[313315358,1707141062062,-500.0,0.00043561,7]
[313315359,1707141062075,-500.0,0.00043561,7]
[313315360,1707141062084,-500.0,0.00043561,7]
[313315361,1707141062094,-2945.36,0.00043561,7]
[313315362,1707141062106,-1282.34,0.00043561,7]
[313315363,1707141062115,-3282.54,0.00043561,7]
[313315364,1707141062125,-500.0,0.00043561,7]
[313315365,1707141062134,-500.0,0.00043561,7]
[313315366,1707141062144,-176.052965,0.00043561,7]
[313315367,1707141062154,-500.0,0.00043561,7]
[313315368,1707141062163,-3762.66,0.00043561,7]
[313315369,1707141062172,-902.51,0.00043561,7]
[313315370,1707141062181,-811.91,0.00043561,7]
[313315371,1707141062191,-3153.57,0.00043561,7]
[313315372,1707141062201,-1620.37,0.00043561,7]
[313315373,1707141062211,-1709.25,0.00043561,7]
[313315374,1707141062221,-500.0,0.00043561,7]
[313315375,1707141062231,-500.0,0.00043561,7]
[313315376,1707141062241,-500.0,0.00043561,7]
[313315377,1707141062250,-841.14,0.00043561,7]
[313315378,1707141062260,-500.0,0.00043561,7]
[313315379,1707141062270,-500.0,0.00043561,7]
[313315380,1707141062279,-897.63,0.00043561,7]
[313315381,1707141062289,-500.0,0.00043561,7]
[313315382,1707141062298,-682.04,0.00043561,7]
[313315383,1707141062308,-500.0,0.00043561,7]
[313315384,1707141062317,-500.0,0.00043561,7]
[313315385,1707141062327,-595.39,0.00043561,7]
[313315386,1707141062336,-2067.99,0.00043561,7]
[313315387,1707141062345,-500.0,0.00043561,7]
[313315388,1707141062355,-500.0,0.00043561,7]
[313315389,1707141062364,-720.96,0.00043561,7]
[313315390,1707141062374,-1212.3,0.00043561,7]
[313315391,1707141062384,-772.76,0.00043561,7]
[313315392,1707141062393,-500.0,0.00043561,7]
[313315393,1707141062403,-563.57,0.00043561,7]
[313315394,1707141062412,-620.58983808,0.00043561,7]
[313315395,1707141062421,-500.0,0.00043561,7]
[313315396,1707141062431,-500.0,0.00043561,7]
[313315397,1707141062440,-500.0,0.00043561,7]
[313315398,1707141062453,-500.0,0.00043561,7]
[313315399,1707141062462,-3315.66,0.00043561,7]
[313315400,1707141062472,-1673.13,0.00043561,7]
[313315401,1707141062481,-500.0,0.00043561,7]
[313315402,1707141062491,-1183.67,0.00043561,7]
[313315403,1707141062501,-900.33,0.00043561,7]
[313315404,1707141062510,-4531.2,0.00043561,7]
[313315405,1707141062519,-640.84,0.00043561,7]
[313315406,1707141062529,-500.0,0.00043561,7]
[313315407,1707141062539,-1576.09,0.00043561,7]
[313315408,1707141062549,-797.42,0.00043561,7]
[313315409,1707141062559,-500.0,0.00043561,7]
[313315410,1707141062568,-3717.27,0.00043561,7]
[313315411,1707141062578,-500.0,0.00043561,7]
[313315412,1707141062587,-652.52,0.00043561,7]
[313315413,1707141062597,-500.0,0.00043561,7]
[313315414,1707141062607,-521.68,0.00043561,7]
[313315415,1707141062616,-500.0,0.00043561,7]
[313315416,1707141062626,-2030.25,0.00043561,7]
[313315417,1707141062635,-1425.8,0.00043561,7]
[313315418,1707141062645,-853.61,0.00043561,7]
[313315419,1707141062654,-943.6,0.00043561,7]
[313315420,1707141062664,-797.05,0.00043561,7]
[313315421,1707141062674,-869.18,0.00043561,7]
[313315422,1707141062685,-500.0,0.00043561,7]
[313315423,1707141062699,-16477.57,0.00043561,7]
[313315424,1707141062715,-558.73751123,0.00043561,7]
[313315425,1707141062725,-615.37,0.00043561,7]
[313315426,1707141062734,-500.0,0.00043561,7]
[313315427,1707141062745,-962.12,0.00043561,7]
[313315428,1707141062755,-637.09,0.00043561,7]
[313315429,1707141062766,-759.37,0.00043561,7]
[313315430,1707141062777,-2493.22,0.00043561,7]
[313315431,1707141062787,-500.0,0.00043561,7]
[313315432,1707141062797,-500.0,0.00043561,7]
[313315433,1707141062806,-772.9,0.00043561,7]
[313315434,1707141062815,-1247.25,0.00043561,7]
[313315435,1707141062825,-564.67,0.00043561,7]
[313315436,1707141062834,-1021.83,0.00043561,7]
[313315437,1707141062844,-500.0,0.00043561,7]
[313315438,1707141062854,-500.0,0.00043561,7]
[313315439,1707141062865,-500.0,0.00043561,7]
[313315440,1707141062875,-1860.07,0.00043561,5]
[313315441,1707141062885,-965.46,0.00043561,7]
[313315442,1707141062895,-666.83,0.00043561,7]
[313315443,1707141062905,-835.34,0.00043561,7]
[313315444,1707141062915,-500.0,0.00043561,7]
[313315445,1707141062924,-500.0,0.00043561,7]
[313315446,1707141062934,-1670.53,0.00043561,7]
[313315447,1707141062946,-500.0,0.00043561,7]
[313315448,1707141062956,-500.0,0.00043561,7]
[313315449,1707141062966,-500.0,0.00043561,7]
[313315450,1707141062975,-500.0,0.00043561,7]
[313315451,1707141062985,-2378.71,0.00043561,7]
[313315452,1707141062994,-722.21,0.00043561,7]
[313315453,1707141063004,-500.0,0.00043561,7]
[313315454,1707141063014,-211.73907875,0.00043561,7]
[313315455,1707141063024,-173.34396512,0.00043561,7]
[313315456,1707141063034,-1564.53,0.00043561,7]
[313315457,1707141063043,-500.0,0.00043561,7]
[313315458,1707141063052,-2135.15,0.00043561,7]
[313315459,1707141063066,-1133.82,0.00043561,7]
[313315460,1707141063076,-1649.41,0.00043561,7]
[313315461,1707141063085,-553.90650053,0.00043561,7]
[313315462,1707141063095,-500.0,0.00043561,7]
[313315463,1707141063106,-869.85,0.00043561,7]
[313315464,1707141063116,-500.0,0.00043561,7]
[313315465,1707141063126,-1942.02,0.00043561,7]
[313315466,1707141063135,-500.0,0.00043561,7]
[313315467,1707141063146,-500.0,0.00043561,7]
[313315468,1707141063156,-571.52580599,0.00043561,7]
[313315469,1707141063166,-500.0,0.00043561,7]
[313315470,1707141063176,-886.83,0.00043561,7]
[313315471,1707141063186,-500.0,0.00043561,7]
[313315472,1707141063196,-2082.24,0.00043561,7]
[313315473,1707141063206,-163.73687232,0.00043578,30]
[313315474,1707141063216,-5000.0,0.00043596,3]
[313315475,1707141063226,-1000.0,0.00043677,2]
[313315476,1707141063236,-1000.0,0.0004375,4]
[313315477,1707141063245,-700.0,0.0004377,3]
[313315478,1707141063254,-628.0,0.0004379,2]
[313315479,1707141063264,-479.0,0.0004379,2]
[313315480,1707141063274,-2000.38,0.000438,2]
[313315481,1707141063283,-1307.2822592,0.000438,2]
[313315482,1707141063294,-3000.0,0.000438,39]
[313315483,1707141063303,-200.0,0.000438,2]
[313315484,1707141063313,-1000.0,0.000438,35]
[313315485,1707141063323,-8000.0,0.000438,2]
[313315486,1707141063332,-3000.0,0.0004381,39]
[313315487,1707141063342,-5449.297538,0.0004382,39]
[313315488,1707141063351,-2362.75712389,0.00043835,2]
[313315489,1707141063360,-666.0,0.00043835,2]
[313315490,1707141063370,-8210.14,0.00043836,2]
[313315491,1707141063379,-1469.19,0.00043836,15]
[313315492,1707141063389,-500.0,0.00043836,7]
[313315493,1707141063398,-370.77,0.00043836,2]
[313315494,1707141063407,-417.47,0.00043836,2]
[313315495,1707141063416,-150.0,0.00043836,2]
[313315496,1707141063426,-341.99,0.00043836,2]
[313315497,1707141063435,-420.83,0.00043836,2]
[313315498,1707141063446,-417.47,0.00043836,2]
[313315499,1707141063456,-341.99,0.00043836,2]
[313315500,1707141063466,-420.83,0.00043836,2]
[313315501,1707141063475,-417.47,0.00043836,2]
[313315502,1707141063484,-341.99,0.00043836,2]
[313315503,1707141063494,-420.83,0.00043836,2]
[313315504,1707141063502,-420.83,0.00043836,2]
[313315505,1707141063511,-417.47,0.00043836,2]
[313315506,1707141063520,-420.83,0.00043836,2]
[313315507,1707141063529,-417.47,0.00043836,2]
[313315508,1707141063538,-341.99,0.00043836,2]
[313315509,1707141063548,-420.83,0.00043836,2]
[313315510,1707141063557,-420.83,0.00043836,2]
[313315511,1707141063567,-683.73,0.00043836,2]
[313315512,1707141063576,-417.47,0.00043836,2]
[313315513,1707141063586,-420.83,0.00043836,2]
[313315514,1707141063595,-420.83,0.00043836,2]
[313315515,1707141063605,-417.47,0.00043836,2]
[313315516,1707141063615,-341.99,0.00043836,2]
[313315517,1707141063625,-420.83,0.00043836,2]
[313315518,1707141063635,-420.83,0.00043836,2]
[313315519,1707141063644,-417.47,0.00043836,2]
[313315520,1707141063655,-341.99,0.00043836,2]
[313315521,1707141063665,-420.83,0.00043836,2]
[313315522,1707141063675,-180.06,0.00043836,2]
[313315523,1707141063684,-420.83,0.00043836,2]
[313315524,1707141063694,-341.99,0.00043836,2]
[313315525,1707141063705,-341.99,0.00043836,2]
[313315526,1707141063714,-841.66,0.00043836,2]
[313315527,1707141063724,-420.83,0.00043836,2]
[313315528,1707141063733,-341.99,0.00043836,2]
[313315529,1707141063743,-683.98,0.00043836,2]
[313315530,1707141063752,-420.83,0.00043836,2]
[313315531,1707141063763,-164.56,0.00043836,2]
[313315532,1707141063772,-420.83,0.00043836,2]
[313315533,1707141063782,-420.83,0.00043836,2]
[313315534,1707141063792,-420.83,0.00043836,2]
[313315535,1707141063802,-153.77,0.000439,4]
[313315536,1707141063812,-153.77,0.000439,4]
[313315537,1707141063822,-1000.0,0.000439,35]
[313315538,1707141063831,-440.72022514,0.00043973,4]
[313315539,1707141063949,-341.33264365,0.00043973,4]
[313315540,1707141063960,-50000.0,0.00044,24]
[313315541,1707141063970,-2766.98,0.00044,7]
[313315542,1707141063980,-2223.76,0.00044,7]
[313315543,1707141063990,-1000.0,0.00044,12]
[313315544,1707141064000,-1000.0,0.00044,35]
[313315545,1707141064011,-163.33084062,0.00044036,30]
[313315546,1707141064021,-155.0,0.0004407,2]
[313315547,1707141064030,-150.58929576,0.00044088,30]
[313315548,1707141064040,-508.16906719,0.00044125,38]
[313315549,1707141064050,-11548.71831169,0.00044173,19]
[313315550,1707141064059,-150.58929576,0.00044202,30]
[313315551,1707141064072,-152.1338987,0.00044239,30]
[313315552,1707141064081,-150.58929576,0.00044269,30]
[313315553,1707141064091,-152.1338987,0.00044357,30]
[313315554,1707141064101,-500.0,0.00044383,7]
[313315555,1707141064111,-500.0,0.00044383,7]
[313315556,1707141064120,-500.0,0.00044383,7]
[313315557,1707141064130,-500.0,0.00044383,7]
[313315558,1707141064139,-250.0,0.00044383,7]
[313315559,1707141064149,-1258.02,0.00044383,7]
[313315560,1707141064159,-500.0,0.00044383,7]
[313315561,1707141064169,-500.0,0.00044383,7]
[313315562,1707141064179,-767.26,0.00044383,7]
[313315563,1707141064188,-881.23,0.00044383,7]
[313315564,1707141064201,-500.0,0.00044383,7]
[313315565,1707141064211,-731.54,0.00044383,2]
[313315566,1707141064221,-500.0,0.00044383,7]
[313315567,1707141064231,-500.0,0.00044383,7]
[313315568,1707141064241,-181.28220891,0.00044383,7]
[313315569,1707141064251,-500.0,0.00044383,7]
[313315570,1707141064260,-696.59,0.00044383,7]
[313315571,1707141064270,-500.0,0.00044383,7]
[313315572,1707141064279,-500.0,0.00044383,7]
[313315573,1707141064289,-500.0,0.00044383,7]
[313315574,1707141064299,-500.0,0.00044383,7]
[313315575,1707141064309,-500.0,0.00044383,7]
[313315576,1707141064318,-982.48,0.00044383,7]
[313315577,1707141064328,-500.0,0.00044383,7]
[313315578,1707141064337,-500.0,0.00044383,7]
[313315579,1707141064347,-500.0,0.00044383,7]
[313315580,1707141064356,-1951.09,0.00044383,7]
[313315581,1707141064366,-500.0,0.00044383,7]
[313315582,1707141064376,-883.69,0.00044383,7]
[313315583,1707141064385,-500.0,0.00044383,7]
[313315584,1707141064395,-1662.45,0.00044383,7]
[313315585,1707141064404,-500.0,0.00044383,7]
[313315586,1707141064414,-500.0,0.00044383,7]
[313315587,1707141064423,-543.57,0.00044383,7]
[313315588,1707141064432,-512.08370524,0.00044383,7]
[313315589,1707141064442,-1413.28,0.00044383,7]
[313315590,1707141064453,-500.0,0.00044383,7]
[313315591,1707141064462,-547.5,0.00044383,7]
[313315592,1707141064471,-500.0,0.00044383,7]
[313315593,1707141064480,-500.0,0.00044383,7]
[313315594,1707141064489,-500.0,0.00044383,2]
[313315595,1707141064498,-857.72,0.00044383,7]
[313315596,1707141064508,-500.0,0.00044383,7]
[313315597,1707141064517,-719.71,0.00044383,2]
[313315598,1707141064526,-667.71,0.00044383,2]
[313315599,1707141064536,-500.0,0.00044383,7]
[313315600,1707141064545,-640.9,0.00044383,7]
[313315601,1707141064554,-949.09,0.00044383,7]
[313315602,1707141064564,-500.0,0.00044383,7]
[313315603,1707141064573,-500.0,0.00044383,7]
[313315604,1707141064582,-500.0,0.00044383,7]
[313315605,1707141064592,-500.0,0.00044383,7]
[313315606,1707141064601,-500.0,0.00044383,7]
[313315607,1707141064610,-500.0,0.00044383,7]
[313315608,1707141064620,-500.0,0.00044383,7]
[313315609,1707141064630,-500.0,0.00044383,7]
[313315610,1707141064639,-500.0,0.00044383,7]
[313315611,1707141064649,-547.63,0.00044383,7]
[313315612,1707141064659,-1075.46,0.00044383,7]
[313315613,1707141064668,-597.23673812,0.00044383,7]
[313315614,1707141064677,-517.66,0.00044383,7]
[313315615,1707141064687,-550.91,0.00044383,7]
[313315616,1707141064699,-1349.54,0.00044383,7]
[313315617,1707141064709,-500.0,0.00044383,7]
[313315618,1707141064718,-500.0,0.00044383,7]
[313315619,1707141064727,-500.0,0.00044383,7]
[313315620,1707141064737,-613.72,0.00044383,7]
[313315621,1707141064746,-1006.73,0.00044383,7]
[313315622,1707141064755,-1250.19,0.00044383,2]
[313315623,1707141064764,-1273.66,0.00044383,7]
[313315624,1707141064774,-6044.25,0.00044383,7]
[313315625,1707141064785,-500.0,0.00044383,7]
[313315626,1707141064794,-500.0,0.00044383,7]
[313315627,1707141064803,-1144.85,0.00044383,7]
[313315628,1707141064813,-500.0,0.00044383,7]
[313315629,1707141064823,-631.49548103,0.00044383,7]
[313315630,1707141064832,-1340.06,0.00044383,7]
[313315631,1707141064841,-1146.57,0.00044383,7]
[313315632,1707141064850,-753.23,0.00044383,7]
[313315633,1707141064860,-1749.33,0.00044383,5]
[313315634,1707141064869,-500.0,0.00044383,7]
[313315635,1707141064878,-973.94,0.00044383,7]
[313315636,1707141064888,-883.86,0.00044383,7]
[313315637,1707141064897,-1114.96,0.00044383,7]
[313315638,1707141064907,-500.0,0.00044383,7]
[313315639,1707141064916,-500.0,0.00044383,7]
[313315640,1707141064926,-500.0,0.00044383,7]
[313315641,1707141064935,-1040.76,0.00044383,7]
[313315642,1707141064945,-1579.06,0.00044383,7]
[313315643,1707141064956,-500.0,0.00044383,7]
[313315644,1707141064965,-500.0,0.00044383,7]
[313315645,1707141064975,-500.0,0.00044383,7]
[313315646,1707141064984,-708.83,0.00044383,7]
[313315647,1707141064994,-695.17,0.00044383,7]
[313315648,1707141065003,-4647.44,0.00044383,7]
[313315649,1707141065013,-794.97,0.00044383,7]
[313315650,1707141065022,-500.0,0.00044383,20]
[313315651,1707141065032,-2815.53,0.00044383,7]
[313315652,1707141065044,-16636.33,0.00044383,7]
[313315653,1707141065057,-563.07,0.00044383,7]
[313315654,1707141065075,-874.74,0.00044383,7]
[313315655,1707141065090,-882.21,0.00044383,7]
[313315656,1707141065100,-613.72,0.00044383,7]
[313315657,1707141065112,-500.0,0.00044383,7]
[313315658,1707141065122,-500.0,0.00044383,7]
[313315659,1707141065132,-1232.66,0.00044383,7]
[313315660,1707141065142,-500.0,0.00044383,7]
[313315661,1707141065152,-500.0,0.00044383,7]
[313315662,1707141065162,-786.94,0.00044383,7]
[313315663,1707141065173,-619.7,0.00044383,7]
[313315664,1707141065183,-1817.8,0.00044383,7]
[313315665,1707141065193,-500.0,0.00044383,7]
[313315666,1707141065206,-500.0,0.00044383,7]
[313315667,1707141065217,-500.0,0.00044383,7]
[313315668,1707141065228,-2945.36,0.00044383,7]
[313315669,1707141065241,-1282.34,0.00044383,7]
[313315670,1707141065252,-3282.54,0.00044383,7]
[313315671,1707141065263,-500.0,0.00044383,7]
[313315672,1707141065274,-500.0,0.00044383,7]
[313315673,1707141065285,-500.0,0.00044383,7]
[313315674,1707141065295,-3762.66,0.00044383,7]
[313315675,1707141065305,-902.51,0.00044383,7]
[313315676,1707141065315,-811.91,0.00044383,7]
[313315677,1707141065325,-3153.57,0.00044383,7]
[313315678,1707141065335,-1620.37,0.00044383,7]
[313315679,1707141065345,-1709.25,0.00044383,7]
[313315680,1707141065355,-500.0,0.00044383,7]
[313315681,1707141065366,-500.0,0.00044383,7]
[313315682,1707141065376,-500.0,0.00044383,7]
[313315683,1707141065387,-841.14,0.00044383,7]
[313315684,1707141065398,-500.0,0.00044383,7]
[313315685,1707141065408,-500.0,0.00044383,7]
[313315686,1707141065418,-897.63,0.00044383,7]
[313315687,1707141065428,-500.0,0.00044383,7]
[313315688,1707141065438,-682.04,0.00044383,7]
[313315689,1707141065451,-500.0,0.00044383,7]
[313315690,1707141065461,-500.0,0.00044383,7]
[313315691,1707141065472,-595.39,0.00044383,7]
[313315692,1707141065482,-2067.99,0.00044383,7]
[313315693,1707141065493,-500.0,0.00044383,7]
[313315694,1707141065503,-500.0,0.00044383,7]
[313315695,1707141065513,-720.96,0.00044383,7]
[313315696,1707141065523,-1212.3,0.00044383,7]
[313315697,1707141065533,-772.76,0.00044383,7]
[313315698,1707141065543,-500.0,0.00044383,7]
[313315699,1707141065554,-563.57,0.00044383,7]
[313315700,1707141065565,-500.0,0.00044383,7]
[313315701,1707141065575,-500.0,0.00044383,7]
[313315702,1707141065586,-500.0,0.00044383,7]
[313315703,1707141065596,-500.0,0.00044383,7]
[313315704,1707141065607,-3315.66,0.00044383,7]
[313315705,1707141065617,-1673.13,0.00044383,7]
[313315706,1707141065627,-500.0,0.00044383,7]
[313315707,1707141065638,-1183.67,0.00044383,7]
[313315708,1707141065648,-900.33,0.00044383,7]
[313315709,1707141065658,-640.84,0.00044383,7]
[313315710,1707141065668,-4531.2,0.00044383,7]
[313315711,1707141065678,-500.0,0.00044383,7]
[313315712,1707141065688,-1576.09,0.00044383,7]
[313315713,1707141065700,-797.42,0.00044383,7]
[313315714,1707141065712,-500.0,0.00044383,7]
[313315715,1707141065722,-3717.27,0.00044383,7]
[313315716,1707141065732,-500.0,0.00044383,7]
[313315717,1707141065742,-652.52,0.00044383,7]
[313315718,1707141065752,-521.68,0.00044383,7]
[313315719,1707141065763,-500.0,0.00044383,7]
[313315720,1707141065773,-500.0,0.00044383,7]
[313315721,1707141065893,-2030.25,0.00044383,7]
[313315722,1707141065903,-1425.8,0.00044383,7]
[313315723,1707141065913,-853.61,0.00044383,7]
[313315724,1707141065923,-943.6,0.00044383,7]
[313315725,1707141065933,-797.05,0.00044383,7]
[313315726,1707141065942,-869.18,0.00044383,7]
[313315727,1707141065954,-635.43544591,0.00044383,7]
[313315728,1707141065964,-16477.57,0.00044383,7]
[313315729,1707141065974,-615.37,0.00044383,7]
[313315730,1707141065984,-962.12,0.00044383,7]
[313315731,1707141065995,-759.37,0.00044383,7]
[313315732,1707141066005,-2493.22,0.00044383,7]
[313315733,1707141066016,-637.09,0.00044383,7]
[313315734,1707141066026,-500.0,0.00044383,7]
[313315735,1707141066037,-500.0,0.00044383,7]
[313315736,1707141066048,-772.9,0.00044383,7]
[313315737,1707141066062,-1247.25,0.00044383,7]
[313315738,1707141066076,-564.67,0.00044383,7]
[313315739,1707141066087,-1021.83,0.00044383,7]
[313315740,1707141066098,-500.0,0.00044383,7]
[313315741,1707141066109,-500.0,0.00044383,7]
[313315742,1707141066119,-500.0,0.00044383,7]
[313315743,1707141066130,-1860.07,0.00044383,5]
[313315744,1707141066142,-666.83,0.00044383,7]
[313315745,1707141066153,-965.46,0.00044383,7]
[313315746,1707141066163,-835.34,0.00044383,7]
[313315747,1707141066174,-500.0,0.00044383,7]
[313315748,1707141066185,-1670.53,0.00044383,7]
[313315749,1707141066198,-500.0,0.00044383,7]
[313315750,1707141066209,-500.0,0.00044383,7]
[313315751,1707141066220,-500.0,0.00044383,7]
[313315752,1707141066230,-2378.71,0.00044383,7]
[313315753,1707141066241,-722.21,0.00044383,7]
[313315754,1707141066252,-1564.53,0.00044383,7]
[313315755,1707141066262,-500.0,0.00044383,7]
[313315756,1707141066273,-2135.15,0.00044383,7]
[313315757,1707141066283,-1133.82,0.00044383,7]
[313315758,1707141066293,-1649.41,0.00044383,7]
[313315759,1707141066305,-500.0,0.00044383,7]
[313315760,1707141066316,-869.85,0.00044383,7]
[313315761,1707141066326,-500.0,0.00044383,7]
[313315762,1707141066336,-1942.02,0.00044383,7]
[313315763,1707141066346,-500.0,0.00044383,7]
[313315764,1707141066356,-500.0,0.00044383,7]
[313315765,1707141066367,-886.83,0.00044383,7]
[313315766,1707141066378,-500.0,0.00044383,7]
[313315767,1707141066388,-2082.24,0.00044383,7]
[313315768,1707141066399,-33176.80613755,0.000444,10]
[313315769,1707141066409,-154.41949831,0.00044456,30]
[313315770,1707141066419,-500.0,0.00044458,7]
[313315771,1707141066429,-185.56369,0.00044525,30]
[313315772,1707141066439,-318.785562,0.00044525,30]
[313315773,1707141066451,-264.386109,0.00044525,30]
[313315774,1707141066461,-3013.119886,0.00044525,30]
[313315775,1707141066470,-178.455634,0.00044525,30]
[313315776,1707141066480,-180.6795,0.00044525,30]
[313315777,1707141066489,-152.57148148,0.00044578,24]
[313315778,1707141066498,-420.83,0.00044658,2]
[313315779,1707141066508,-244.59,0.00044658,2]
[313315780,1707141066517,-156.24,0.00044658,2]
[313315781,1707141066526,-341.99,0.00044658,2]
[313315782,1707141066536,-420.83,0.00044658,2]
[313315783,1707141066546,-1358.1,0.00044732,2]
[313315784,1707141066555,-166.10491109,0.00044768,30]
[313315785,1707141066565,-3850.54133626,0.00044775,5]
[313315786,1707141066575,-152.1338987,0.0004478,30]
[313315787,1707141066584,-150.0,0.000448,34]
[313315788,1707141066594,-1307.2822592,0.000448,2]
[313315789,1707141066603,-249.86559,0.000448,17]
[313315790,1707141066613,-700.0,0.0004487,3]
[313315791,1707141066622,-2000.38,0.0004495,2]
[313315792,1707141066632,-379.93319474,0.0004498,5]
[313315793,1707141066642,-206.0,0.00044997,36]
[313315794,1707141066651,-50000.0,0.00045,35]
[313315795,1707141066661,-302.73188938,0.00045,14]
[313315796,1707141066671,-213.0,0.00045,30]
[313315797,1707141066681,-250.0,0.00045,7]
[313315798,1707141066691,-3497.61223903,0.00045,17]
[313315799,1707141066705,-1000.0,0.00045,30]
[313315800,1707141066715,-1000.0,0.00045,30]
[313315801,1707141066725,-1000.0,0.00045,30]
[313315802,1707141066735,-1000.0,0.00045,14]
[313315803,1707141066745,-782.04,0.00045,14]
[313315804,1707141066754,-1005.0,0.00045,14]
[313315805,1707141066764,-4854.75322408,0.00045,10]
[313315806,1707141066773,-152.5396169,0.00045,120]
[313315807,1707141066783,-850.0,0.00045,3]
[313315808,1707141066792,-2500.0,0.00045,31]
[313315809,1707141066802,-1587.417778,0.00045,17]
[313315810,1707141066812,-450.0,0.0004502,15]
[313315811,1707141066822,-500.0,0.00045081,7]
[313315812,1707141066831,-185.56369,0.00045082,30]
[313315813,1707141066840,-318.785562,0.00045082,30]
[313315814,1707141066849,-264.386109,0.00045082,30]
[313315815,1707141066858,-3013.119886,0.00045082,30]
[313315816,1707141066867,-1948.35,0.000451,7]
[313315817,1707141066877,-1000.0,0.00045149,2]
[313315818,1707141066886,-4066.0,0.000452,2]
[313315819,1707141066895,-500.0,0.00045205,7]
[313315820,1707141066905,-500.0,0.00045205,7]
[313315821,1707141066914,-498.85285301,0.00045205,7]
[313315822,1707141066928,-250.0,0.00045205,7]
[313315823,1707141066937,-1258.02,0.00045205,7]
[313315824,1707141066948,-500.0,0.00045205,7]
[313315825,1707141066958,-500.0,0.00045205,7]